[Event "Betsys MČR v online bleskovém šachu 2021"]
[Site "Chess.com"]
[Date "2021.04.17"]
[Round "2"]
[White "Petroniuss"]
[Black "matej-c"]
[Result "1-0"]
[WhiteElo "2335"]
[BlackElo "1985"]
[TimeControl "180+1"]
[EndTime "9:17:35 PDT"]
[Termination "Uživatel Petroniuss zvítězil matem"]

1. e4 {[%clk 0:03:00.9]} 1... e5 {[%clk 0:02:59.5]} 2. Nf3 {[%clk 0:03:00.4]}
2... Nf6 {[%clk 0:02:59.1]} 3. d4 {[%clk 0:02:55.5]} 3... Nxe4 {[%clk
0:02:57.7]} 4. Bd3 {[%clk 0:02:54.3]} 4... d5 {[%clk 0:02:57.3]} 5. dxe5 {[%clk
0:02:54.5]} 5... Be7 {[%clk 0:02:43.9]} 6. h3 {[%clk 0:02:47]} 6... Nc6 {[%clk
0:02:38.1]} 7. O-O {[%clk 0:02:46.4]} 7... Bf5 {[%clk 0:02:35.7]} 8. Nc3 {[%clk
0:02:42.3]} 8... Nxc3 {[%clk 0:02:25]} 9. bxc3 {[%clk 0:02:41.9]} 9... Bxd3
{[%clk 0:02:08.7]} 10. cxd3 {[%clk 0:02:42.8]} 10... O-O {[%clk 0:02:04.8]} 11.
Rb1 {[%clk 0:02:42.6]} 11... Rb8 {[%clk 0:01:57.2]} 12. d4 {[%clk 0:02:42.6]}
12... Na5 {[%clk 0:01:53.8]} 13. Qa4 {[%clk 0:02:33.3]} 13... b6 {[%clk
0:01:52.1]} 14. Ba3 {[%clk 0:02:24.9]} 14... Bxa3 {[%clk 0:01:45]} 15. Qxa3
{[%clk 0:02:25.8]} 15... Qd7 {[%clk 0:01:40.9]} 16. Rfe1 {[%clk 0:02:21.2]}
16... Rfe8 {[%clk 0:01:40]} 17. Qc1 {[%clk 0:02:07.6]} 17... Qf5 {[%clk
0:01:15.2]} 18. Qg5 {[%clk 0:02:06.6]} 18... Qxg5 {[%clk 0:01:10.1]} 19. Nxg5
{[%clk 0:02:07.5]} 19... h6 {[%clk 0:01:10.1]} 20. Nf3 {[%clk 0:02:05.4]} 20...
Nc4 {[%clk 0:01:06.6]} 21. Re2 {[%clk 0:02:02.2]} 21... Re6 {[%clk 0:01:01.9]}
22. Nd2 {[%clk 0:02:01.8]} 22... Na5 {[%clk 0:00:36.9]} 23. f4 {[%clk
0:01:59.2]} 23... Rc6 {[%clk 0:00:29.5]} 24. Re3 {[%clk 0:01:56.8]} 24... Nc4
{[%clk 0:00:25.7]} 25. Nxc4 {[%clk 0:01:54.7]} 25... Rxc4 {[%clk 0:00:26.6]} 26.
Kf2 {[%clk 0:01:49.2]} 26... Re8 {[%clk 0:00:25.8]} 27. g4 {[%clk 0:01:48.4]}
27... Re6 {[%clk 0:00:25.8]} 28. f5 {[%clk 0:01:48.4]} 28... Rec6 {[%clk
0:00:25.8]} 29. Rb3 {[%clk 0:01:48.7]} 29... Ra4 {[%clk 0:00:25.8]} 30. a3
{[%clk 0:01:48.2]} 30... Rac4 {[%clk 0:00:20]} 31. Ke2 {[%clk 0:01:48.3]} 31...
a5 {[%clk 0:00:20.3]} 32. Kd2 {[%clk 0:01:47.1]} 32... Kf8 {[%clk 0:00:16.3]}
33. Rb5 {[%clk 0:01:38]} 33... Ra4 {[%clk 0:00:14.6]} 34. Rxd5 {[%clk
0:01:28.2]} 34... Rxa3 {[%clk 0:00:14.3]} 35. e6 {[%clk 0:01:22]} 35... fxe6
{[%clk 0:00:08.7]} 36. fxe6 {[%clk 0:01:22.9]} 36... Rd6 {[%clk 0:00:07.2]} 37.
Rf5+ {[%clk 0:01:12.2]} 37... Ke8 {[%clk 0:00:05.6]} 38. h4 {[%clk 0:00:50.8]}
38... c5 {[%clk 0:00:05.3]} 39. d5 {[%clk 0:00:47.2]} 39... Ra2+ {[%clk
0:00:02.9]} 40. Kd3 {[%clk 0:00:45.8]} 40... Rh2 {[%clk 0:00:03.8]} 41. g5
{[%clk 0:00:41.8]} 41... hxg5 {[%clk 0:00:03.4]} 42. hxg5 {[%clk 0:00:41.9]}
42... a4 {[%clk 0:00:03.8]} 43. e7 {[%clk 0:00:41.4]} 43... a3 {[%clk
0:00:02.2]} 44. Rf8+ {[%clk 0:00:41.3]} 44... Kd7 {[%clk 0:00:02.6]} 45. e8=Q+
{[%clk 0:00:41.7]} 45... Kc7 {[%clk 0:00:02.5]} 46. Qc8# {[%clk 0:00:40.5]} 1-0

[Event "Betsys MČR v online bleskovém šachu 2021"]
[Site "Chess.com"]
[Date "2021.04.17"]
[Round "2"]
[White "Patriktesko"]
[Black "fm_magua"]
[Result "0-1"]
[WhiteElo "2067"]
[BlackElo "2510"]
[TimeControl "180+1"]
[EndTime "9:17:36 PDT"]
[Termination "Uživatel fm_magua zvítězil matem"]

1. d4 {[%clk 0:03:00.9]} 1... Nf6 {[%clk 0:02:56.9]} 2. Nf3 {[%clk 0:02:56.7]}
2... g6 {[%clk 0:02:56.9]} 3. Bg5 {[%clk 0:02:56.6]} 3... Bg7 {[%clk 0:02:57.1]}
4. e3 {[%clk 0:02:56.6]} 4... O-O {[%clk 0:02:57.2]} 5. c3 {[%clk 0:02:56.5]}
5... d6 {[%clk 0:02:57.7]} 6. Bd3 {[%clk 0:02:56.2]} 6... c5 {[%clk 0:02:57.1]}
7. Nbd2 {[%clk 0:02:56.5]} 7... Nc6 {[%clk 0:02:57.5]} 8. Qc2 {[%clk 0:02:56.5]}
8... a6 {[%clk 0:02:55.6]} 9. h4 {[%clk 0:02:55.8]} 9... b5 {[%clk 0:02:53.4]}
10. h5 {[%clk 0:02:54.7]} 10... c4 {[%clk 0:02:46.8]} 11. Be2 {[%clk 0:02:51.1]}
11... d5 {[%clk 0:02:40.8]} 12. hxg6 {[%clk 0:02:45.6]} 12... fxg6 {[%clk
0:02:40.3]} 13. O-O-O {[%clk 0:02:44.7]} 13... Bf5 {[%clk 0:02:40.1]} 14. e4
{[%clk 0:02:42]} 14... Nxe4 {[%clk 0:02:40.5]} 15. Nxe4 {[%clk 0:02:39.1]} 15...
Bxe4 {[%clk 0:02:40.5]} 16. Qd2 {[%clk 0:02:37.5]} 16... b4 {[%clk 0:02:38.2]}
17. Bh6 {[%clk 0:02:35.5]} 17... bxc3 {[%clk 0:02:36.5]} 18. bxc3 {[%clk
0:02:25.7]} 18... Qa5 {[%clk 0:02:18.5]} 19. Bxg7 {[%clk 0:02:20.1]} 19... Qa3+
{[%clk 0:02:09.4]} 20. Qb2 {[%clk 0:02:19.3]} 20... Qxb2+ {[%clk 0:02:09.7]} 21.
Kxb2 {[%clk 0:02:20.1]} 21... Kxg7 {[%clk 0:02:09.7]} 22. Ng5 {[%clk 0:02:17.6]}
22... Rxf2 {[%clk 0:02:07.7]} 23. Rd2 {[%clk 0:02:07.9]} 23... Rb8+ {[%clk
0:02:04]} 24. Ka1 {[%clk 0:01:59.3]} 24... h6 {[%clk 0:01:36.1]} 25. Nxe4 {[%clk
0:01:52.2]} 25... dxe4 {[%clk 0:01:36.4]} 26. Rb1 {[%clk 0:01:46.9]} 26... Rxb1+
{[%clk 0:01:34.2]} 27. Kxb1 {[%clk 0:01:47.8]} 27... Rxg2 {[%clk 0:01:31.7]} 28.
Kc1 {[%clk 0:01:39.1]} 28... Na5 {[%clk 0:01:11.9]} 29. Rb2 {[%clk 0:01:27.5]}
29... h5 {[%clk 0:01:10.1]} 30. Kd1 {[%clk 0:01:24.5]} 30... h4 {[%clk
0:01:08.6]} 31. Rb6 {[%clk 0:01:19.1]} 31... h3 {[%clk 0:01:07.6]} 32. Re6
{[%clk 0:01:14.8]} 32... h2 {[%clk 0:01:00.6]} 33. Rxe7+ {[%clk 0:01:12.6]}
33... Kh6 {[%clk 0:00:55.6]} 34. Re8 {[%clk 0:01:06.3]} 34... h1=Q+ {[%clk
0:00:55.2]} 35. Kd2 {[%clk 0:00:35.9]} 35... Rxe2+ {[%clk 0:00:54.4]} 36. Kxe2
{[%clk 0:00:34.8]} 36... Qf3+ {[%clk 0:00:55]} 37. Kd2 {[%clk 0:00:34.5]} 37...
Qd3+ {[%clk 0:00:54.5]} 38. Ke1 {[%clk 0:00:32.2]} 38... Qxc3+ {[%clk
0:00:54.9]} 39. Kf1 {[%clk 0:00:32]} 39... Qf3+ {[%clk 0:00:54.2]} 40. Ke1
{[%clk 0:00:31.2]} 40... e3 {[%clk 0:00:54.3]} 41. Rh8+ {[%clk 0:00:30.3]} 41...
Kg7 {[%clk 0:00:53.9]} 42. Rh2 {[%clk 0:00:26.1]} 42... Qg3+ {[%clk 0:00:53.8]}
43. Ke2 {[%clk 0:00:24.9]} 43... Qxh2+ {[%clk 0:00:53.8]} 44. Kxe3 {[%clk
0:00:25.8]} 44... c3 {[%clk 0:00:52.5]} 45. Ke4 {[%clk 0:00:26.7]} 45... c2
{[%clk 0:00:52.4]} 46. d5 {[%clk 0:00:27.6]} 46... c1=Q {[%clk 0:00:52.1]} 47.
a4 {[%clk 0:00:28.5]} 47... Qhf4+ {[%clk 0:00:51.5]} 48. Kd3 {[%clk 0:00:22.2]}
48... Qce3+ {[%clk 0:00:50.8]} 49. Kc2 {[%clk 0:00:03.9]} 49... Qd2+ {[%clk
0:00:50.5]} 50. Kb1 {[%clk 0:00:03.7]} 50... Qe4+ {[%clk 0:00:50.6]} 51. Ka1
{[%clk 0:00:02.3]} 51... Nb3# {[%clk 0:00:50.6]} 0-1

[Event "Betsys MČR v online bleskovém šachu 2021"]
[Site "Chess.com"]
[Date "2021.04.17"]
[Round "2"]
[White "BetsysBetting"]
[Black "Bolavey_Kotnik"]
[Result "0-1"]
[WhiteElo "1955"]
[BlackElo "2392"]
[TimeControl "180+1"]
[EndTime "9:17:36 PDT"]
[Termination "Uživatel Bolavey_Kotnik zvítězil na čas"]

1. d4 {[%clk 0:03:00.9]} 1... Nf6 {[%clk 0:02:58]} 2. g3 {[%clk 0:03:00.5]} 2...
d6 {[%clk 0:02:57.5]} 3. Bg2 {[%clk 0:03:00.5]} 3... Nbd7 {[%clk 0:02:58.1]} 4.
Nf3 {[%clk 0:03:00.9]} 4... e5 {[%clk 0:02:57.8]} 5. O-O {[%clk 0:02:51.8]} 5...
Be7 {[%clk 0:02:57.3]} 6. c4 {[%clk 0:02:42.2]} 6... O-O {[%clk 0:02:55.2]} 7.
Nc3 {[%clk 0:02:42.1]} 7... c6 {[%clk 0:02:55.2]} 8. b3 {[%clk 0:02:33.8]} 8...
Qc7 {[%clk 0:02:53.9]} 9. Bb2 {[%clk 0:02:33.1]} 9... Re8 {[%clk 0:02:50.2]} 10.
Qc2 {[%clk 0:02:32.1]} 10... h6 {[%clk 0:02:44.8]} 11. Rad1 {[%clk 0:02:30.6]}
11... a5 {[%clk 0:02:39.6]} 12. Nh4 {[%clk 0:02:22.4]} 12... exd4 {[%clk
0:02:10.4]} 13. Rxd4 {[%clk 0:02:20.5]} 13... Nc5 {[%clk 0:01:49.5]} 14. Nf5
{[%clk 0:02:16.4]} 14... Bf8 {[%clk 0:01:47.1]} 15. Nd1 {[%clk 0:01:43.2]} 15...
g6 {[%clk 0:01:19.6]} 16. Nh4 {[%clk 0:01:28.6]} 16... Bg7 {[%clk 0:01:15.7]}
17. Re1 {[%clk 0:01:02.1]} 17... Be6 {[%clk 0:00:44.9]} 18. Ne3 {[%clk
0:00:49.5]} 18... Rad8 {[%clk 0:00:39.1]} 19. Red1 {[%clk 0:00:33.3]} 19... b6
{[%clk 0:00:28.7]} 20. h3 {[%clk 0:00:30]} 20... Nh5 {[%clk 0:00:25.1]} 21. R4d2
{[%clk 0:00:27.9]} 21... Nf6 {[%clk 0:00:25.1]} 22. Kh2 {[%clk 0:00:27.1]} 22...
Bc8 {[%clk 0:00:25.1]} 23. a3 {[%clk 0:00:17.9]} 23... Nb7 {[%clk 0:00:18.8]}
24. b4 {[%clk 0:00:17.5]} 24... Be6 {[%clk 0:00:17.9]} 25. g4 {[%clk 0:00:14.2]}
25... d5+ {[%clk 0:00:17]} 26. Kg1 {[%clk 0:00:14.2]} 26... dxc4 {[%clk
0:00:15.8]} 27. Rxd8 {[%clk 0:00:11]} 27... Rxd8 {[%clk 0:00:16.7]} 28. Rxd8+
{[%clk 0:00:10.9]} 28... Nxd8 {[%clk 0:00:17.6]} 29. Nxc4 {[%clk 0:00:08.4]}
29... axb4 {[%clk 0:00:17.5]} 30. axb4 {[%clk 0:00:08.2]} 30... Bd5 {[%clk
0:00:14.9]} 31. Be5 {[%clk 0:00:07.5]} 31... Qe7 {[%clk 0:00:11.2]} 32. Bxd5
{[%clk 0:00:03.6]} 32... cxd5 {[%clk 0:00:11.1]} 33. Bd6 {[%clk 0:00:01.1]}
33... Qe6 {[%clk 0:00:10.6]} 0-1

[Event "Betsys MČR v online bleskovém šachu 2021"]
[Site "Chess.com"]
[Date "2021.04.17"]
[Round "2"]
[White "YoungMegaMind"]
[Black "Bancroft"]
[Result "1-0"]
[WhiteElo "2279"]
[BlackElo "1938"]
[TimeControl "180+1"]
[EndTime "9:17:37 PDT"]
[Termination "Uživatel YoungMegaMind zvítězil po vzdání soupeře"]

1. Nf3 {[%clk 0:03:00.9]} 1... d5 {[%clk 0:02:59.2]} 2. e3 {[%clk 0:02:59.6]}
2... c5 {[%clk 0:02:56.3]} 3. b3 {[%clk 0:02:59.7]} 3... Nc6 {[%clk 0:02:54.1]}
4. Bb2 {[%clk 0:02:59.8]} 4... Nf6 {[%clk 0:02:50.6]} 5. Bb5 {[%clk 0:02:59.6]}
5... Bf5 {[%clk 0:02:34.6]} 6. d3 {[%clk 0:02:49.9]} 6... e6 {[%clk 0:02:24.5]}
7. Bxc6+ {[%clk 0:02:44.8]} 7... bxc6 {[%clk 0:02:23.3]} 8. Ne5 {[%clk
0:02:45.5]} 8... Qc7 {[%clk 0:02:20.8]} 9. O-O {[%clk 0:02:44.4]} 9... Bd6
{[%clk 0:02:20.4]} 10. f4 {[%clk 0:02:44]} 10... O-O {[%clk 0:02:13]} 11. c4
{[%clk 0:02:23.8]} 11... Nd7 {[%clk 0:02:04.2]} 12. Nxd7 {[%clk 0:02:15.6]}
12... Qxd7 {[%clk 0:02:02.9]} 13. Nc3 {[%clk 0:02:14.7]} 13... f6 {[%clk
0:01:53.8]} 14. Qe2 {[%clk 0:02:08.8]} 14... e5 {[%clk 0:01:49.1]} 15. e4 {[%clk
0:02:04.8]} 15... Bg6 {[%clk 0:01:39.5]} 16. f5 {[%clk 0:02:03.9]} 16... Bf7
{[%clk 0:01:39.6]} 17. Na4 {[%clk 0:02:02.3]} 17... Rad8 {[%clk 0:01:30.4]} 18.
Ba3 {[%clk 0:02:00.5]} 18... Qe7 {[%clk 0:01:29.7]} 19. Rad1 {[%clk 0:01:55.8]}
19... Kh8 {[%clk 0:01:28.9]} 20. Qf2 {[%clk 0:01:49.7]} 20... d4 {[%clk
0:01:27.1]} 21. Qe1 {[%clk 0:01:48.9]} 21... g6 {[%clk 0:01:20.7]} 22. fxg6
{[%clk 0:01:00.5]} 22... hxg6 {[%clk 0:01:19.3]} 23. Qa5 {[%clk 0:00:58]} 23...
f5 {[%clk 0:01:13.1]} 24. Bxc5 {[%clk 0:00:54.4]} 24... f4 {[%clk 0:01:04.1]}
25. Qxa7 {[%clk 0:00:47.6]} 25... Bxc5 {[%clk 0:01:00]} 26. Qxc5 {[%clk
0:00:46.5]} 26... Rd6 {[%clk 0:00:51.7]} 27. g3 {[%clk 0:00:37.1]} 27... g5
{[%clk 0:00:51.2]} 28. Kg2 {[%clk 0:00:36]} 28... Kg7 {[%clk 0:00:50.7]} 29. b4
{[%clk 0:00:24.2]} 29... Bh5 {[%clk 0:00:50.7]} 30. Rde1 {[%clk 0:00:23]} 30...
f3+ {[%clk 0:00:47.7]} 31. Kg1 {[%clk 0:00:22.4]} 31... g4 {[%clk 0:00:46.6]}
32. Rf2 {[%clk 0:00:22.4]} 32... Be8 {[%clk 0:00:32.4]} 33. Nb6 {[%clk
0:00:20.7]} 33... Qf6 {[%clk 0:00:23.1]} 34. a4 {[%clk 0:00:20.3]} 34... Rf7
{[%clk 0:00:19.4]} 35. a5 {[%clk 0:00:19.9]} 35... Rb7 {[%clk 0:00:18.7]} 36. a6
{[%clk 0:00:19.7]} 36... Rxb6 {[%clk 0:00:18.2]} 37. Qxb6 {[%clk 0:00:19.7]}
37... Kh6 {[%clk 0:00:15.2]} 38. a7 {[%clk 0:00:19.6]} 38... c5 {[%clk
0:00:13.3]} 39. Qb8 {[%clk 0:00:18.7]} 39... Qd8 {[%clk 0:00:09.4]} 40. a8=Q
{[%clk 0:00:18.2]} 1-0

[Event "Betsys MČR v online bleskovém šachu 2021"]
[Site "Chess.com"]
[Date "2021.04.17"]
[Round "2"]
[White "PaulS_CR"]
[Black "JustFilip05"]
[Result "1/2-1/2"]
[WhiteElo "1840"]
[BlackElo "2136"]
[TimeControl "180+1"]
[EndTime "9:17:37 PDT"]
[Termination "Remíza – nedostatek materiálu"]

1. Nf3 {[%clk 0:03:00.9]} 1... g6 {[%clk 0:02:55.5]} 2. d4 {[%clk 0:02:55.5]}
2... Bg7 {[%clk 0:02:56.4]} 3. g3 {[%clk 0:02:55]} 3... Nf6 {[%clk 0:02:56.1]}
4. Bg2 {[%clk 0:02:54.8]} 4... O-O {[%clk 0:02:56.8]} 5. O-O {[%clk 0:02:54.4]}
5... d5 {[%clk 0:02:57.4]} 6. Nbd2 {[%clk 0:02:46.9]} 6... c6 {[%clk 0:02:55.7]}
7. e3 {[%clk 0:02:45.8]} 7... Bf5 {[%clk 0:02:51.4]} 8. c4 {[%clk 0:02:44.9]}
8... Nbd7 {[%clk 0:02:46.6]} 9. b3 {[%clk 0:02:44.6]} 9... Ne4 {[%clk
0:02:43.5]} 10. Bb2 {[%clk 0:02:42.1]} 10... Nxd2 {[%clk 0:02:41]} 11. Qxd2
{[%clk 0:02:40]} 11... Re8 {[%clk 0:02:41.2]} 12. Nh4 {[%clk 0:02:35]} 12... Be4
{[%clk 0:02:19.8]} 13. f3 {[%clk 0:02:31.4]} 13... Bf5 {[%clk 0:02:19.4]} 14.
Nxf5 {[%clk 0:02:26.8]} 14... gxf5 {[%clk 0:02:20.3]} 15. cxd5 {[%clk 0:02:21]}
15... cxd5 {[%clk 0:02:20.3]} 16. Qd3 {[%clk 0:02:20.8]} 16... e6 {[%clk
0:02:20.2]} 17. Qb5 {[%clk 0:02:16.9]} 17... Nb6 {[%clk 0:02:15.5]} 18. Rfc1
{[%clk 0:02:15.2]} 18... a6 {[%clk 0:02:12.4]} 19. Qb4 {[%clk 0:02:10.5]} 19...
Bf8 {[%clk 0:02:12.1]} 20. Qd2 {[%clk 0:02:09.3]} 20... Qd6 {[%clk 0:01:52.1]}
21. Rc2 {[%clk 0:02:06.6]} 21... Rac8 {[%clk 0:01:51.6]} 22. Rac1 {[%clk
0:02:06.4]} 22... Rxc2 {[%clk 0:01:50.4]} 23. Rxc2 {[%clk 0:02:06.3]} 23... Rc8
{[%clk 0:01:49.4]} 24. Rxc8 {[%clk 0:02:05.1]} 24... Nxc8 {[%clk 0:01:50.3]} 25.
Bf1 {[%clk 0:02:03.2]} 25... Na7 {[%clk 0:01:47.7]} 26. Qc3 {[%clk 0:02:00.1]}
26... Qc6 {[%clk 0:01:43]} 27. Bd3 {[%clk 0:01:53.2]} 27... Nb5 {[%clk
0:01:23.2]} 28. Qxc6 {[%clk 0:01:51.9]} 28... bxc6 {[%clk 0:01:22.9]} 29. a4
{[%clk 0:01:48.4]} 29... Nc7 {[%clk 0:01:22.4]} 30. Bc3 {[%clk 0:01:48]} 30...
Bd6 {[%clk 0:00:55.9]} 31. Ba5 {[%clk 0:01:45.9]} 31... Kf8 {[%clk 0:00:56]} 32.
Bxc7 {[%clk 0:01:45]} 32... Bxc7 {[%clk 0:00:56.9]} 33. Bxa6 {[%clk 0:01:44.1]}
33... Ke7 {[%clk 0:00:57.5]} 34. Kf2 {[%clk 0:01:43]} 34... Ba5 {[%clk
0:00:55.4]} 35. Ke2 {[%clk 0:01:40.3]} 35... Kd6 {[%clk 0:00:53.7]} 36. Kd3
{[%clk 0:01:37]} 36... h5 {[%clk 0:00:50.6]} 37. h3 {[%clk 0:01:32.5]} 37... Be1
{[%clk 0:00:42.1]} 38. g4 {[%clk 0:01:30.8]} 38... fxg4 {[%clk 0:00:41.6]} 39.
fxg4 {[%clk 0:01:30.1]} 39... hxg4 {[%clk 0:00:38.8]} 40. hxg4 {[%clk
0:01:29.9]} 40... f6 {[%clk 0:00:39]} 41. Bc8 {[%clk 0:01:19.1]} 41... Bb4
{[%clk 0:00:30]} 42. e4 {[%clk 0:01:14.4]} 42... e5 {[%clk 0:00:25.1]} 43. exd5
{[%clk 0:01:10]} 43... cxd5 {[%clk 0:00:25]} 44. Bf5 {[%clk 0:01:05.1]} 44...
e4+ {[%clk 0:00:24.2]} 45. Bxe4 {[%clk 0:00:55.5]} 45... dxe4+ {[%clk
0:00:19.2]} 46. Kxe4 {[%clk 0:00:54.9]} 46... Ke6 {[%clk 0:00:17.6]} 47. d5+
{[%clk 0:00:54]} 47... Kd6 {[%clk 0:00:17.7]} 48. Kf5 {[%clk 0:00:53.7]} 48...
Bc3 {[%clk 0:00:17.6]} 49. g5 {[%clk 0:00:41.9]} 49... fxg5 {[%clk 0:00:18.5]}
50. Kxg5 {[%clk 0:00:41.6]} 50... Kxd5 {[%clk 0:00:19.1]} 51. Kf5 {[%clk
0:00:41.2]} 51... Kc5 {[%clk 0:00:19.6]} 52. Ke4 {[%clk 0:00:40.6]} 52... Kb4
{[%clk 0:00:20.2]} 53. Kd3 {[%clk 0:00:39.8]} 53... Kxb3 {[%clk 0:00:20.1]} 54.
a5 {[%clk 0:00:39.6]} 54... Bxa5 {[%clk 0:00:20.7]} 1/2-1/2

[Event "Betsys MČR v online bleskovém šachu 2021"]
[Site "Chess.com"]
[Date "2021.04.17"]
[Round "2"]
[White "Dasty78"]
[Black "MatyldaCZ"]
[Result "1-0"]
[WhiteElo "2018"]
[BlackElo "1407"]
[TimeControl "180+1"]
[EndTime "9:17:37 PDT"]
[Termination "Uživatel Dasty78 zvítězil matem"]

1. e4 {[%clk 0:02:58.6]} 1... e5 {[%clk 0:02:59.8]} 2. Nf3 {[%clk 0:02:56.5]}
2... Nc6 {[%clk 0:02:59.9]} 3. Bb5 {[%clk 0:02:56.2]} 3... d6 {[%clk 0:02:59.3]}
4. c3 {[%clk 0:02:55.4]} 4... Bd7 {[%clk 0:02:58.4]} 5. d4 {[%clk 0:02:55.5]}
5... Nf6 {[%clk 0:02:56.2]} 6. O-O {[%clk 0:02:40.4]} 6... Be7 {[%clk
0:02:55.1]} 7. Re1 {[%clk 0:02:25.5]} 7... O-O {[%clk 0:02:54.5]} 8. d5 {[%clk
0:02:25.3]} 8... Na5 {[%clk 0:02:50]} 9. Bxd7 {[%clk 0:02:24.9]} 9... Qxd7
{[%clk 0:02:49.8]} 10. Qe2 {[%clk 0:01:53.4]} 10... b6 {[%clk 0:02:47.4]} 11. c4
{[%clk 0:01:52.8]} 11... Rac8 {[%clk 0:02:43]} 12. b4 {[%clk 0:01:52.4]} 12...
Nb7 {[%clk 0:02:42.9]} 13. Nc3 {[%clk 0:01:44.3]} 13... Rfe8 {[%clk 0:02:36.3]}
14. Nb5 {[%clk 0:01:26.2]} 14... a6 {[%clk 0:02:34.6]} 15. Na7 {[%clk
0:01:24.9]} 15... Ra8 {[%clk 0:02:32.4]} 16. Nc6 {[%clk 0:01:24.9]} 16... Nd8
{[%clk 0:02:28.4]} 17. Nxe7+ {[%clk 0:01:19.7]} 17... Qxe7 {[%clk 0:02:23.3]}
18. Bg5 {[%clk 0:01:19.4]} 18... h6 {[%clk 0:02:22.3]} 19. Bh4 {[%clk 0:00:57]}
19... Nb7 {[%clk 0:02:20.5]} 20. Qd2 {[%clk 0:00:50.8]} 20... Rac8 {[%clk
0:02:09.2]} 21. Bg3 {[%clk 0:00:44.8]} 21... Rf8 {[%clk 0:02:02.7]} 22. Nh4
{[%clk 0:00:42.2]} 22... Nh5 {[%clk 0:01:55.9]} 23. Nf5 {[%clk 0:00:39.9]} 23...
Qd7 {[%clk 0:01:38.9]} 24. Qe2 {[%clk 0:00:35]} 24... Nxg3 {[%clk 0:01:36.8]}
25. hxg3 {[%clk 0:00:34.8]} 25... Kh7 {[%clk 0:01:14.9]} 26. Kh2 {[%clk
0:00:30.4]} 26... g6 {[%clk 0:01:13.6]} 27. Ne3 {[%clk 0:00:25.9]} 27... Rg8
{[%clk 0:01:06.5]} 28. Rh1 {[%clk 0:00:25.3]} 28... Rh8 {[%clk 0:00:58.7]} 29.
Kg1 {[%clk 0:00:24.4]} 29... Kg8 {[%clk 0:00:58.4]} 30. Ng4 {[%clk 0:00:22.6]}
30... Kg7 {[%clk 0:00:57.3]} 31. Qf3 {[%clk 0:00:20.8]} 31... Qe7 {[%clk
0:00:52.8]} 32. Qe3 {[%clk 0:00:17.1]} 32... g5 {[%clk 0:00:47.8]} 33. Qf3
{[%clk 0:00:15.5]} 33... Rcf8 {[%clk 0:00:44.8]} 34. Ne3 {[%clk 0:00:15.2]}
34... Qd7 {[%clk 0:00:36.4]} 35. Nf5+ {[%clk 0:00:14.7]} 35... Kg6 {[%clk
0:00:31.7]} 36. Qh5+ {[%clk 0:00:13.5]} 36... Kf6 {[%clk 0:00:30.4]} 37. Nxh6
{[%clk 0:00:11.4]} 37... Ke7 {[%clk 0:00:26.7]} 38. Qxg5+ {[%clk 0:00:10.5]}
38... Ke8 {[%clk 0:00:26.5]} 39. Nf5 {[%clk 0:00:08.6]} 39... Rxh1+ {[%clk
0:00:25.3]} 40. Kxh1 {[%clk 0:00:08.4]} 40... Nd8 {[%clk 0:00:22.2]} 41. Ng7#
{[%clk 0:00:07.2]} 1-0

[Event "Betsys MČR v online bleskovém šachu 2021"]
[Site "Chess.com"]
[Date "2021.04.17"]
[Round "2"]
[White "Ehlundi"]
[Black "JosefBara"]
[Result "1-0"]
[WhiteElo "1767"]
[BlackElo "1288"]
[TimeControl "180+1"]
[EndTime "9:17:37 PDT"]
[Termination "Uživatel Ehlundi zvítězil po vzdání soupeře"]

1. e4 {[%clk 0:03:00.9]} 1... e6 {[%clk 0:03:00.1]} 2. Nf3 {[%clk 0:03:01.3]}
2... d5 {[%clk 0:03:00.2]} 3. exd5 {[%clk 0:03:01]} 3... exd5 {[%clk 0:03:00.2]}
4. d4 {[%clk 0:03:01.7]} 4... Nf6 {[%clk 0:03:00.4]} 5. Bd3 {[%clk 0:03:01.7]}
5... Be7 {[%clk 0:03:00.5]} 6. h3 {[%clk 0:03:01.6]} 6... O-O {[%clk 0:03:00.4]}
7. O-O {[%clk 0:03:02.2]} 7... c6 {[%clk 0:02:59.6]} 8. Bf4 {[%clk 0:03:02.1]}
8... Nbd7 {[%clk 0:02:59.2]} 9. Re1 {[%clk 0:03:00.3]} 9... Re8 {[%clk
0:02:57.2]} 10. Nbd2 {[%clk 0:02:59]} 10... Nb6 {[%clk 0:02:57]} 11. b3 {[%clk
0:02:57.9]} 11... c5 {[%clk 0:02:54.2]} 12. c4 {[%clk 0:02:53.7]} 12... dxc4
{[%clk 0:02:52.1]} 13. Nxc4 {[%clk 0:02:52.8]} 13... Nxc4 {[%clk 0:02:51.3]} 14.
Bxc4 {[%clk 0:02:53]} 14... b6 {[%clk 0:02:43.1]} 15. d5 {[%clk 0:02:49.4]}
15... Bb7 {[%clk 0:02:39.2]} 16. d6 {[%clk 0:02:40.7]} 16... Bf8 {[%clk
0:02:38.1]} 17. Rxe8 {[%clk 0:02:32.1]} 17... Qxe8 {[%clk 0:02:31.3]} 18. Ne5
{[%clk 0:02:29.9]} 18... Rd8 {[%clk 0:02:16.9]} 19. Bxf7+ {[%clk 0:02:28.3]}
19... Qxf7 {[%clk 0:02:14]} 20. Nxf7 {[%clk 0:02:28.4]} 20... Kxf7 {[%clk
0:02:14.3]} 21. Qd3 {[%clk 0:02:14]} 21... Ne4 {[%clk 0:02:03.1]} 22. Re1 {[%clk
0:02:03.1]} 22... Nxd6 {[%clk 0:01:59.3]} 23. Bxd6 {[%clk 0:01:57.8]} 23... Rxd6
{[%clk 0:01:56.8]} 24. Qf5+ {[%clk 0:01:57.4]} 24... Kg8 {[%clk 0:01:55.6]} 25.
Re8 {[%clk 0:01:50.8]} 25... Rf6 {[%clk 0:01:52.1]} 26. Qd7 {[%clk 0:01:42.4]}
26... Ba6 {[%clk 0:01:37.9]} 27. Qxa7 {[%clk 0:01:27]} 27... Bb5 {[%clk
0:01:32]} 28. a4 {[%clk 0:01:23.4]} 28... Bxe8 {[%clk 0:01:30.6]} 29. a5 {[%clk
0:01:12]} 29... bxa5 {[%clk 0:01:29.5]} 30. Qxa5 {[%clk 0:01:11.6]} 30... Bc6
{[%clk 0:01:21.5]} 31. f3 {[%clk 0:01:07.9]} 31... Rg6 {[%clk 0:01:19]} 32. Kf2
{[%clk 0:01:06.4]} 32... h6 {[%clk 0:01:11.9]} 33. Qc7 {[%clk 0:01:04.6]} 33...
Rd6 {[%clk 0:00:57.6]} 34. Qc8 {[%clk 0:00:56.7]} 34... Bb5 {[%clk 0:00:40.2]}
35. Qf5 {[%clk 0:00:45.9]} 35... Rd2+ {[%clk 0:00:37.5]} 36. Kg3 {[%clk
0:00:42.5]} 36... Bd6+ {[%clk 0:00:34.4]} 37. f4 {[%clk 0:00:38.4]} 37... Rd3+
{[%clk 0:00:32.3]} 38. Kg4 {[%clk 0:00:34.5]} 38... Rxb3 {[%clk 0:00:29.2]} 39.
Qe6+ {[%clk 0:00:34.6]} 39... Kh7 {[%clk 0:00:25.8]} 40. Qxb3 {[%clk 0:00:34.4]}
40... Bd7+ {[%clk 0:00:24.3]} 41. Kg3 {[%clk 0:00:34]} 41... Kg6 {[%clk
0:00:21.5]} 42. Qd3+ {[%clk 0:00:33.9]} 42... Kf6 {[%clk 0:00:16.2]} 43. Qxd6+
{[%clk 0:00:33.5]} 43... Be6 {[%clk 0:00:15.9]} 44. Qxc5 {[%clk 0:00:33.4]}
44... g5 {[%clk 0:00:15.5]} 45. Qe5+ {[%clk 0:00:32.6]} 45... Ke7 {[%clk
0:00:15.1]} 46. f5 {[%clk 0:00:32]} 1-0